bitfinex-derivatives/quotes_ETHF0:USTF0_20260208
["timestamp","ask_amount","ask_price","bid_price","bid_amount"]
[1770586659905,4.43809906,2095.6,2094.5,4.73881079]
[1770586661107,4.43809906,2095.4,2094.5,4.73881079]
[1770586661301,4.44371747,2095.4,2094.5,4.73881079]
[1770586661499,4.44371747,2095.4,2094.5,0.42609825]
[1770586662208,4.44371747,2095.4,2094.5,4.73881079]
[1770586662895,4.44371747,2095.4,2094.5,0.42609825]
[1770586663897,4.43809906,2095.2,2093.9,4.55165254]
[1770586664106,4.43809906,2095.2,2094.5,4.31271254]
[1770586664904,4.43809906,2095.2,2094.5,4.3173552]
[1770586665403,4.43809906,2095.2,2094.5,0.00464266]
[1770586666406,4.43809906,2095.2,2094.5,4.62377394]
[1770586667608,4.43809906,2095.2,2094.5,0.00464266]
[1770586669000,4.43809906,2095.2,2093.9,4.61913128]
[1770586670008,4.43809906,2095.2,2093.9,4.62502852]
[1770586670509,4.43809906,2095.2,2093.9,5.28606671]
[1770586673909,7.31127939,2095.0,2093.9,0.00589724]
[1770586674107,4.57418742,2094.9,2093.8,4.73255581]
[1770586674412,4.57418742,2094.9,2093.8,5.16534919]
[1770586675112,4.57418742,2094.9,2093.8,5.17077513]
[1770586675309,4.57418742,2094.9,2094.1,4.61913128]
[1770586675514,4.57418742,2094.9,2094.1,4.85805128]
[1770586676313,4.57418742,2094.9,2094.1,0.23892]
[1770586676806,4.57418742,2094.9,2093.9,4.61913128]
[1770586680012,4.57418742,2094.9,2093.9,4.85807128]
[1770586680618,4.57418742,2095.3,2094.1,4.61913128]
[1770586680911,4.57418742,2095.3,2094.3,4.61913128]
[1770586682215,4.57418742,2095.3,2094.3,4.85803128]
[1770586683415,4.57418742,2095.3,2094.5,4.61913128]
[1770586684113,0.00561841,2095.4,2094.5,4.61913128]
[1770586684314,0.00561841,2095.4,2094.8,4.61913128]
[1770586684520,4.57980583,2095.4,2094.8,4.85797128]
[1770586686814,0.00561841,2095.4,2094.8,4.85797128]
[1770586688922,4.57418742,2095.7,2094.8,4.85797128]
[1770586689818,4.57982931,2095.7,2094.8,4.85797128]
[1770586693019,41.58135768,2096.2,2094.8,4.85797128]
[1770586693020,4.54769239,2096.0,2095.2,4.61913128]
[1770586694023,4.55315941,2096.0,2095.2,4.61913128]
[1770586694623,4.55315941,2096.0,2095.2,4.85793128]
[1770586694822,0.00546702,2096.0,2095.2,4.85793128]
[1770586697124,0.00546702,2096.0,2095.4,4.7568823]
[1770586697419,0.00546702,2096.0,2095.4,5.00115546]
[1770586698722,4.52919635,2096.3,2095.6,4.7568823]
[1770586699418,4.52919635,2096.3,2095.6,4.9956323]
[1770586699618,4.53404056,2096.3,2095.6,4.9956323]
[1770586700024,4.53404056,2096.3,2095.6,0.23875]
[1770586700225,4.53404056,2096.3,2095.4,4.76238546]
[1770586701132,4.52919635,2096.1,2095.1,0.23881]
[1770586701531,4.52919635,2096.1,2095.1,4.9956923]
[1770586702121,4.52919635,2096.1,2095.1,0.242472]
[1770586702423,4.52919635,2096.1,2095.1,0.003662]
[1770586702617,7.56169541,2096.3,2094.5,0.23888]
[1770586702618,4.52919635,2095.5,2094.5,0.23888]
[1770586703024,4.52919635,2095.5,2093.9,0.23894]
[1770586703231,4.52919635,2094.4,2093.3,4.9958923]
[1770586703623,4.53408206,2094.4,2093.5,4.7568823]
[1770586703921,4.53408206,2094.4,2093.4,0.239]
[1770586704315,4.53408206,2094.4,2093.3,0.00387828]
[1770586704517,4.53408206,2094.4,2093.3,4.76076058]
[1770586705427,4.53408206,2094.4,2093.3,0.00387828]
[1770586705626,4.52919635,2093.9,2092.4,4.9959923]
[1770586705826,4.52919635,2093.5,2092.4,0.4261674]
[1770586706126,4.52919635,2093.5,2091.5,9.80239026]
[1770586706127,4.52919635,2093.5,2092.2,4.7568823]
[1770586706331,4.52919635,2093.5,2092.2,5.18487652]
[1770586706724,4.52919635,2093.5,2091.5,25.15402631]
[1770586706725,4.52919635,2092.7,2091.5,4.7568823]
[1770586706928,4.52919635,2092.9,2091.9,4.7568823]
[1770586707119,4.52919635,2092.9,2091.9,4.9960523]
[1770586707322,4.52919635,2092.9,2091.9,5.42613575]
[1770586707523,4.52919635,2092.9,2092.1,4.7568823]
[1770586707726,0.0040197,2092.9,2092.1,4.76081425]
[1770586707929,0.0040197,2092.9,2092.3,4.7568823]
[1770586708131,4.52919635,2093.3,2092.3,4.7568823]
[1770586709330,4.53394964,2093.3,2092.3,4.7568823]
[1770586710326,0.00475329,2093.3,2092.5,4.7568823]
[1770586710732,0.00475329,2093.3,2092.7,4.7568823]
[1770586711231,4.53394964,2093.3,2092.7,4.7568823]
[1770586712031,4.53394964,2093.3,2092.4,4.7568823]
[1770586712427,4.53394964,2093.3,2092.2,4.7568823]
[1770586713130,4.53394964,2093.3,2092.1,0.00393195]
[1770586713730,4.52919635,2093.1,2091.7,4.9960823]
[1770586713930,4.52919635,2093.0,2091.7,4.9960823]
[1770586714126,4.52919635,2093.0,2091.4,4.7568823]
[1770586714332,4.52919635,2092.7,2091.4,0.41684194]
[1770586714635,4.52919635,2092.7,2091.1,4.7568823]
[1770586714831,4.52919635,2092.7,2091.4,4.76141901]
[1770586715136,4.52919635,2092.7,2091.4,0.00453671]
[1770586715938,4.52919635,2092.7,2091.4,4.76141901]
[1770586717032,4.52919635,2092.7,2091.4,0.00453671]
[1770586717228,4.52919635,2092.7,2091.4,4.76141901]
[1770586723655,4.52919635,2092.7,2091.6,4.7568823]
[1770586724147,4.52919635,2092.7,2091.6,4.9960923]
[1770586724344,4.52919635,2092.7,2091.6,4.7568823]
[1770586724548,4.52919635,2092.7,2091.8,4.7568823]
[1770586725350,4.41234817,2092.9,2091.8,4.7568823]
[1770586726053,4.41234817,2093.2,2092.0,4.56150454]
[1770586731751,4.41234817,2093.2,2092.2,4.32234454]
[1770586732644,4.41234817,2092.7,2091.3,4.32234454]
[1770586732851,4.41234817,2092.5,2091.5,0.23915]
[1770586733048,4.41234817,2092.3,2091.5,0.23915]
[1770586733246,4.41234817,2092.3,2091.6,0.23915]
[1770586733447,4.41234817,2092.3,2091.6,4.56149454]
[1770586733655,4.41234817,2092.3,2091.7,0.23915]
[1770586733854,4.41234817,2092.3,2091.8,0.23915]
[1770586734154,4.41234817,2092.3,2091.7,0.23915]
[1770586734558,4.41234817,2092.3,2091.8,0.23915]
[1770586734755,4.41234817,2092.3,2091.7,0.23915]
[1770586735053,4.41234817,2092.8,2092.2,4.32234454]
[1770586735249,4.41234817,2093.2,2092.3,4.56149454]
[1770586735444,4.41234817,2093.0,2092.3,4.32234454]
[1770586735646,4.41234817,2093.0,2092.4,4.56149454]
[1770586735850,4.41234817,2093.0,2092.4,4.32234454]
[1770586736052,4.41234817,2093.0,2092.5,0.23915]
[1770586736546,4.41234817,2093.0,2092.5,0.07921367]
[1770586736750,4.41234817,2093.0,2092.6,0.07921367]
[1770586736956,4.41234817,2093.0,2092.3,0.07921367]
[1770586737455,4.41234817,2093.0,2092.4,0.07921367]
[1770586737659,4.41234817,2093.0,2092.3,0.07921367]
[1770586738156,4.41234817,2093.0,2092.4,0.07921367]
[1770586738460,4.41234817,2092.8,2091.6,4.56155454]
[1770586738958,4.41234817,2092.6,2091.6,4.56155454]
[1770586739162,4.41234817,2092.6,2091.8,4.56152454]
[1770586740463,4.41234817,2093.2,2092.0,4.56150454]
[1770586740663,4.41234817,2093.0,2092.2,4.32234454]
[1770586740958,4.41234817,2093.0,2091.4,0.00453671]
[1770586740959,4.41710146,2093.3,2092.4,4.32234454]
[1770586741969,4.41710146,2093.3,2092.6,4.32234454]
[1770586742862,4.41710146,2093.3,2092.5,0.23911]
[1770586743062,4.41710146,2093.3,2092.5,4.56145454]
[1770586743464,4.41710146,2093.3,2091.8,4.32234454]
[1770586743669,4.41234817,2093.0,2091.9,4.56151454]
[1770586743970,4.41234817,2092.8,2091.9,4.56151454]
[1770586744666,4.41234817,2092.8,2092.1,4.32234454]
[1770586744870,4.41234817,2092.8,2092.2,4.56147454]
[1770586745075,4.41234817,2093.2,2092.2,4.56147454]
[1770586745366,4.41234817,2093.0,2092.2,4.56147454]
[1770586745572,4.41234817,2093.2,2092.4,4.32234454]
[1770586745871,4.41234817,2093.2,2092.4,4.56145454]
[1770586749268,0.00475329,2093.3,2092.6,4.56143454]
[1770586749473,4.41710146,2093.3,2092.6,4.56143454]
[1770586749877,0.00475329,2093.3,2092.8,4.32234454]
[1770586750075,4.41710146,2093.3,2092.8,4.32234454]
[1770586751172,0.00475329,2093.3,2092.8,4.32234454]
[1770586753274,4.41710146,2093.3,2092.8,4.56141454]
[1770586753474,0.00475329,2093.3,2092.8,4.56141454]
[1770586753671,4.41234817,2093.7,2093.0,4.32234454]
[1770586753869,4.06829825,2093.6,2093.0,4.32234454]
[1770586754069,4.41234817,2093.7,2093.0,4.32234454]
[1770586754774,4.41789745,2093.7,2093.0,4.32840971]
[1770586755377,4.47916837,2093.5,2092.6,4.65004591]
[1770586755769,4.47916837,2093.5,2092.6,4.88913591]
[1770586756374,4.47916837,2093.5,2092.8,4.23956829]
[1770586757468,4.47916837,2093.5,2092.8,4.47863829]
[1770586761175,4.3458717,2093.7,2092.8,4.47863829]
[1770586761474,4.34032242,2094.1,2093.4,4.47856829]
[1770586762073,4.34032242,2094.1,2093.5,0.23899]
[1770586762275,4.34032242,2094.1,2093.5,4.47855829]
[1770586762579,4.34367826,2094.1,2093.5,4.47855829]
[1770586765177,4.34032242,2094.2,2093.7,4.23956829]
[1770586765383,3.40998083,2094.2,2093.1,4.47860829]
[1770586765788,3.40998083,2094.2,2093.3,4.23956829]
[1770586766086,3.40998083,2094.2,2092.9,12.683]
[1770586766087,3.40998083,2094.2,2093.5,4.23956829]
[1770586766272,3.41566652,2094.2,2093.5,4.23956829]
[1770586766886,3.41566652,2094.2,2093.4,0.239]
[1770586767383,3.41566652,2094.2,2093.4,4.47856829]
[1770586770582,3.41566652,2094.2,2093.6,4.47854829]
[1770586770783,3.41566652,2094.2,2093.6,0.23898]
[1770586774883,0.00568569,2094.2,2093.9,4.23956829]
[1770586775088,4.34032242,2094.4,2093.8,0.23896]
[1770586776084,4.34462864,2094.4,2093.8,0.23896]
[1770586781089,4.34462864,2094.4,2093.8,4.47852829]
[1770586784289,0.00430622,2094.4,2093.8,4.23956829]
[1770586784489,4.34032242,2094.7,2093.1,9.02]
[1770586784490,4.34032242,2094.7,2094.0,0.23893]
[1770586784790,4.34032242,2094.7,2094.2,4.23956829]
[1770586785491,4.42162873,2094.7,2094.2,4.715386]
[1770586786090,0.005189,2094.7,2094.2,4.715386]
[1770586786291,4.41643973,2095.0,2094.2,4.715386]
[1770586787293,4.42078009,2095.0,2094.2,4.715386]
[1770586788290,4.42078009,2095.0,2094.2,0.47581771]
[1770586789192,4.41643973,2094.8,2094.2,4.68882737]
[1770586793088,4.41643973,2094.8,2094.2,0.47581771]
[1770586793291,4.41643973,2094.8,2094.2,4.68882737]
[1770586800305,4.42078009,2095.0,2094.2,4.68882737]
[1770586800615,0.00434036,2095.0,2094.2,4.68882737]
[1770586800806,4.42078009,2095.0,2094.6,4.21300966]
[1770586801800,0.00434036,2095.0,2094.6,4.45186966]
[1770586802007,4.41643973,2095.2,2094.6,4.45186966]
[1770586802801,4.41643973,2095.2,2094.8,4.21300966]
[1770586803001,4.41979348,2095.2,2094.8,4.21300966]
[1770586803307,0.00335375,2095.2,2094.8,4.21300966]
[1770586803610,4.41643973,2096.0,2095.4,4.21300966]
[1770586804506,4.42110444,2096.0,2095.4,4.21300966]
[1770586804707,0.00466471,2096.0,2095.4,4.21300966]
[1770586805109,2.82121568,2096.6,2095.6,4.45175966]
[1770586805308,4.41643973,2096.6,2095.6,4.45175966]
[1770586806206,4.41985807,2096.6,2095.8,4.21300966]
[1770586806512,4.41985807,2096.6,2095.8,4.4557174]
[1770586806709,0.00341834,2096.6,2096.0,4.21300966]
[1770586807605,4.41643973,2096.9,2096.2,4.45168966]
[1770586807808,4.41643973,2097.4,2096.2,4.45168966]
[1770586808012,4.41643973,2097.4,2096.4,4.21300966]
[1770586808315,4.41643973,2097.0,2096.1,4.21300966]
[1770586808518,4.42157948,2097.0,2096.1,4.21300966]
[1770586809007,4.42157948,2097.0,2096.3,4.21300966]
[1770586809213,0.00513975,2097.0,2096.3,4.21300966]
[1770586809614,0.00513975,2097.0,2096.3,4.45167966]
[1770586810509,0.00513975,2097.0,2096.5,4.21300966]
[1770586811307,42.27590463,2098.1,2096.6,6.14734506]
[1770586811308,4.41643973,2097.6,2096.6,6.14734506]
[1770586811512,4.41643973,2097.2,2096.3,4.21300966]
[1770586811708,2.82121568,2097.9,2096.4,4.21300966]
[1770586811915,4.41643973,2098.3,2097.3,4.45156966]
[1770586812312,4.41643973,2097.9,2096.9,4.21300966]
[1770586813414,4.41643973,2097.9,2096.9,4.2181824]
[1770586814012,4.41643973,2097.9,2097.1,4.21300966]
[1770586814612,4.41643973,2097.9,2096.9,4.2181824]
[1770586814817,4.41643973,2097.9,2096.9,0.00517274]
[1770586815017,4.41643973,2097.9,2096.9,4.23671016]
[1770586817615,4.41643973,2097.9,2096.9,0.00517274]
[1770586820718,4.41643973,2097.9,2096.9,4.29262478]
[1770586822019,4.41643973,2097.9,2096.9,0.00517274]
[1770586824424,7.15321024,2097.9,2096.9,0.00517274]
[1770586824622,4.33818097,2097.8,2096.9,0.00517274]
[1770586827023,4.33818097,2097.4,2096.3,4.28745204]
[1770586827323,4.33818097,2097.4,2096.9,4.52604204]
[1770586827518,4.33818097,2097.4,2096.9,0.23859]
[1770586827716,4.33818097,2097.4,2096.6,4.28745204]
[1770586828121,4.33818097,2097.4,2096.6,4.29274865]
[1770586829730,4.33818097,2098.0,2096.9,4.28745204]
[1770586830724,4.33818097,2097.9,2096.6,0.00529661]
[1770586830924,4.33818097,2097.9,2096.6,4.29274865]
[1770586832026,7.15939665,2097.9,2096.6,0.00529661]
[1770586832227,7.15939665,2097.8,2096.6,0.00529661]
[1770586832529,2.73677051,2097.2,2096.1,4.23896807]
[1770586832735,4.33818097,2097.1,2096.1,4.23896807]
[1770586833228,4.33818097,2097.1,2095.8,4.42152984]
[1770586833630,4.33818097,2097.1,2095.8,4.42614637]
[1770586833825,4.33818097,2096.9,2095.8,4.42614637]
[1770586834229,4.33818097,2096.8,2095.8,4.42614637]
[1770586834431,4.34309663,2096.8,2095.8,4.42614637]
[1770586841648,4.34309663,2096.8,2096.0,3.73269962]
[1770586844850,0.00491566,2096.8,2096.0,3.73269962]
[1770586847448,3.16868277,2096.8,2096.0,3.73269962]
[1770586848840,0.00491566,2096.8,2096.0,3.97139962]
[1770586849740,3.16868277,2096.8,2096.0,3.97139962]
[1770586852749,3.16376711,2097.2,2096.6,3.04835648]
[1770586853852,3.16886325,2097.2,2096.6,3.04835648]
[1770586856051,0.00509614,2097.2,2096.6,3.28699648]
[1770586856251,3.16886325,2097.2,2096.6,3.28699648]
[1770586856752,0.00509614,2097.2,2096.6,3.28699648]
[1770586857564,3.16376711,2097.1,2096.3,2.85853393]
[1770586864362,3.16376711,2097.4,2097.0,2.56852977]
[1770586864864,3.16376711,2097.4,2096.6,2.51959552]
[1770586865462,3.1690405,2097.4,2096.6,2.51959552]
[1770586868967,3.1690405,2097.4,2096.4,2.21103611]
[1770586869168,3.16376711,2097.3,2096.4,2.21103611]
[1770586870371,3.16376711,2097.1,2096.2,2.1695223]
[1770586870665,3.16376711,2097.1,2096.0,2.19846018]
[1770586871664,3.16376711,2097.1,2096.3,2.39580144]
[1770586873161,0.00527339,2097.4,2096.7,2.56501957]
[1770586873365,3.1690405,2097.4,2096.7,2.56501957]
[1770586876261,0.00527339,2097.4,2096.7,2.80363957]
[1770586876767,2.58066779,2097.8,2096.9,2.36496082]
[1770586877068,2.58066779,2097.8,2096.8,2.35968743]
[1770586877863,2.58066779,2097.7,2096.5,4.23079784]
[1770586878067,2.58066779,2097.3,2096.2,2.32177523]
[1770586878268,2.58066779,2097.3,2096.0,6.55257307]
[1770586878464,2.58066779,2097.1,2096.0,2.32177523]
[1770586880771,2.58066779,2097.0,2096.0,2.32177523]
[1770586886269,2.58066779,2097.0,2096.0,6.55257307]
[1770586886468,2.58066779,2097.0,2096.1,1.84797789]
[1770586889272,2.58066779,2097.2,2096.3,1.77255097]
[1770586889476,2.58066779,2097.2,2096.3,2.01121097]
[1770586890474,2.58066779,2097.2,2096.3,1.97841881]
[1770586891569,2.58066779,2097.2,2096.5,1.72324334]
[1770586892166,2.58066779,2097.7,2096.9,1.68937422]
[1770586893077,2.58066779,2097.7,2097.0,1.65535718]
[1770586895778,2.58066779,2097.7,2096.8,1.55802204]
[1770586896077,2.58066779,2097.4,2096.4,1.55802204]
[1770586898480,2.58066779,2097.4,2096.5,1.50868007]
[1770586898684,2.58066779,2097.4,2096.5,1.74732007]
[1770586906886,2.58066779,2097.4,2096.4,4.23079784]
[1770586907195,2.00558076,2097.2,2096.2,1.23311122]
[1770586908392,2.00558076,2097.2,2096.2,1.47179122]
[1770586908887,2.00558076,2097.2,2096.3,1.22775717]
[1770586913791,2.00558076,2097.2,2096.2,4.46947784]
[1770586913989,2.00558076,2097.2,2096.2,5.53885829]
[1770586914496,2.00558076,2097.2,2096.3,1.06938045]
[1770586915896,2.00558076,2097.0,2095.9,5.25179955]
[1770586916091,2.00558076,2096.9,2095.9,1.02100171]
[1770586916789,2.00558076,2096.7,2095.8,1.21198315]
[1770586920896,2.00558076,2096.7,2095.8,0.00461653]
[1770586922898,2.00558076,2096.7,2095.8,1e-08]
[1770586923500,1.05201921,2096.7,2095.8,1e-08]
[1770586923897,2.00558076,2096.4,2095.3,2.01104653]
[1770586924196,2.00558076,2096.4,2095.1,1.77226653]
[1770586924595,2.00558076,2096.3,2095.1,1.77226653]
[1770586925005,2.0096746,2096.3,2095.1,1.77787665]
[1770586925301,2.00558076,2096.2,2095.1,1.77787665]
[1770586931505,2.00558076,2096.2,2094.5,5.68693434]
[1770586931703,2.00558076,2095.0,2093.8,2.03573894]
[1770586932000,2.00558076,2095.0,2094.0,6.20152138]
[1770586932308,2.00558076,2095.0,2093.9,2.03573894]
[1770586932606,2.00558076,2095.0,2093.9,2.04050427]
[1770586938112,2.00558076,2095.0,2093.9,0.00476533]
[1770586939514,2.00558076,2095.0,2093.9,2.13963751]
[1770586941619,2.00558076,2095.0,2093.9,2.37857751]
[1770586944621,2.00558076,2095.0,2094.1,2.13487218]
[1770586944923,2.09850737,2095.6,2094.1,2.37379218]
[1770586945224,2.09850737,2095.4,2094.1,2.37379218]
[1770586946629,2.09850737,2095.6,2094.7,2.13487218]
[1770586946927,2.09850737,2096.2,2094.7,2.13487218]
[1770586947924,2.09850737,2096.2,2094.9,2.13487218]
[1770586948224,2.09850737,2096.2,2094.6,2.73111626]
[1770586948225,2.09850737,2096.2,2095.1,2.13487218]
[1770586948632,2.09850737,2096.2,2095.3,2.13487218]
[1770586951827,2.09850737,2096.4,2095.3,2.13487218]
[1770586952736,2.09850737,2096.4,2095.3,2.37365218]
[1770586953233,2.10260121,2096.3,2095.3,2.37365218]
[1770586960642,2.09850737,2096.2,2094.9,2.13487218]
[1770586961537,2.09850737,2095.8,2094.9,2.13487218]
[1770586961743,2.09850737,2095.8,2094.4,2.13487218]
[1770586962643,2.09850737,2095.6,2094.4,2.13487218]
[1770586970144,1.97142971,2095.4,2094.4,2.13487218]
[1770586974247,1.97142971,2095.2,2094.4,2.13487218]
[1770586975347,1.97142971,2095.0,2094.2,1.93761216]
[1770586982750,1.97142971,2095.2,2094.2,2.17652216]
[1770586986356,1.97142971,2095.0,2094.2,2.17652216]
[1770586990264,4.20875228,2094.9,2094.2,2.17652216]
[1770586990467,1.97142971,2095.0,2094.2,2.17652216]
[1770586990764,1.97142971,2094.8,2094.2,2.17652216]
[1770586990955,1.97652472,2094.8,2094.2,2.17652216]
[1770586993155,0.00509501,2094.8,2094.2,2.17652216]
[1770586995763,42.27590463,2095.3,2094.4,1.68573298]
[1770586995764,2.83113888,2095.3,2094.4,1.68573298]
[1770586995970,1.68585063,2095.5,2094.6,1.68573298]
[1770586996172,4.18379381,2095.4,2094.6,1.92459298]
[1770586996371,1.68585063,2095.4,2094.6,1.92459298]
[1770586996861,1.69131082,2095.4,2094.6,1.92459298]
[1770586999373,0.00546019,2095.4,2094.8,1.68573298]
[1770587002884,4.51698951,2095.8,2094.8,1.92457298]
[1770587003084,1.68585063,2095.8,2094.8,1.92457298]
[1770587003979,1.69148981,2095.8,2094.8,1.92457298]
[1770587009278,1.68585063,2095.6,2094.8,1.92457298]
[1770587012685,1.69148981,2095.8,2094.8,1.92457298]
[1770587012984,1.69148981,2095.8,2095.0,1.68573298]
[1770587017095,0.00563918,2095.8,2095.0,1.92455298]
[1770587018500,0.00563918,2095.8,2095.2,1.68573298]
[1770587018798,0.00102266,2095.8,2095.2,1.92453298]
[1770587019300,0.00102266,2095.8,2095.2,1.68573298]
[1770587019493,0.00102266,2095.8,2095.4,1.68573298]
[1770587019694,0.00102266,2095.8,2095.4,1.68927042]
[1770587020195,1.68585063,2096.3,2095.4,1.68927042]
[1770587020391,5.85838231,2096.2,2095.4,1.68927042]
[1770587020596,1.68585063,2096.1,2095.4,1.68927042]
[1770587021301,1.69141781,2096.1,2095.4,1.68927042]
[1770587025404,1.69141781,2096.1,2095.4,0.00353744]
[1770587025707,1.65546093,2095.9,2095.4,0.00353744]
[1770587026401,1.65546093,2095.9,2094.8,1.61273552]
[1770587026607,1.65546093,2095.7,2094.8,1.61273552]
[1770587027506,1.65546093,2095.7,2094.8,1.6178214]
[1770587027699,1.65546093,2095.7,2094.8,1.8566614]
[1770587028098,1.65546093,2096.0,2095.0,1.85155552]
[1770587028303,1.65546093,2096.0,2095.2,1.61273552]
[1770587028504,1.65546093,2096.0,2095.2,1.85153552]
[1770587039016,1.65546093,2096.0,2095.4,1.61273552]
[1770587041120,1.65546093,2096.0,2095.3,1.61273552]
[1770587056925,1.45584579,2095.8,2094.8,1.79234911]
[1770587057128,1.45584579,2095.6,2094.8,1.79234911]
[1770587063234,1.45584579,2095.4,2094.8,1.55350911]
[1770587063437,1.45584579,2095.4,2094.8,0.00508588]
[1770587063839,1.82327869,2095.5,2094.7,0.60950911]
[1770587063840,1.45584579,2095.2,2094.7,0.60950911]
[1770587064942,1.45584579,2095.2,2094.7,0.61357001]
[1770587065933,1.45584579,2095.2,2094.7,0.0040609]
[1770587067440,1.45584579,2094.8,2094.2,1.54842323]
[1770587068047,1.45584579,2094.8,2094.1,1.54842323]
[1770587068439,1.45584579,2094.8,2094.1,1.55323748]
[1770587068645,1.45584579,2094.6,2094.1,0.00481425]
[1770587068850,1.46109832,2094.6,2094.1,0.00481425]
[1770587069036,1.46109832,2094.6,2094.1,1.55323748]
[1770587070249,1.46109832,2094.6,2094.2,1.54842323]
[1770587071149,1.46109832,2094.6,2094.1,1.55323748]
[1770587073652,0.00525253,2094.6,2094.1,3.37651617]
[1770587073854,1.45584579,2094.8,2094.4,1.54842323]
[1770587074151,1.82327869,2095.3,2094.6,1.54842323]
[1770587074152,1.45584579,2095.3,2094.6,1.54842323]
[1770587074747,1.46171202,2095.3,2094.8,1.54842323]
[1770587076749,0.00586623,2095.3,2095.0,1.54842323]
[1770587077452,1.46171202,2095.3,2095.0,1.54842323]
[1770587077950,0.00586623,2095.3,2095.0,1.54842323]
[1770587078845,1.46171202,2095.3,2094.6,1.54842323]
[1770587079354,1.45584579,2095.5,2095.2,1.54842323]
[1770587079553,1.45584579,2095.5,2095.0,1.54842323]
[1770587079744,1.45584579,2095.5,2094.8,1.54842323]
[1770587079950,1.45584579,2095.4,2094.8,1.54842323]
[1770587080151,1.45584579,2095.4,2094.6,1.54842323]
[1770587080350,1.46094386,2095.4,2094.5,1.54842323]
[1770587080861,1.46094386,2095.4,2094.7,1.54842323]
[1770587088068,1.46094386,2095.4,2094.7,1.45586009]
[1770587088364,0.00509807,2095.4,2094.9,1.45586009]
[1770587089463,0.00509807,2095.4,2095.1,1.45586009]
[1770587089858,1.36801693,2095.8,2095.1,1.45586009]
[1770587090967,1.36801693,2095.6,2095.0,1.45586009]
[1770587092161,1.36801693,2095.6,2094.8,0.23884]
[1770587092162,1.36801693,2095.5,2094.9,1.45586009]
[1770587095468,1.36801693,2095.7,2094.9,1.45586009]
[1770587095664,5.5382098,2095.6,2094.9,1.45586009]
[1770587095866,1.36801693,2095.6,2094.9,1.45586009]
[1770587101273,5.54275109,2095.5,2094.9,1.45586009]
[1770587101472,1.36801693,2095.5,2094.9,1.45586009]
[1770587101976,0.00405877,2095.8,2095.2,1.69465009]
[1770587109471,1.36801693,2096.2,2095.3,0.23878]
[1770587109676,2.83113888,2096.3,2095.5,1.45586009]
[1770587109677,1.36801693,2096.3,2095.5,1.45586009]
[1770587110274,1.36801693,2096.3,2095.5,1.69462009]
[1770587110666,1.37141757,2096.3,2095.5,1.69462009]
[1770587112179,0.00340064,2096.3,2095.7,1.45586009]
[1770587112371,0.00340064,2096.3,2095.7,1.46039503]
[1770587112680,0.00340064,2096.3,2095.7,1.69912503]
[1770587112872,1.36801693,2096.6,2095.7,1.69912503]
[1770587113071,1.36801693,2096.8,2096.0,1.45586009]
[1770587113481,1.36801693,2097.0,2096.2,1.45586009]
[1770587113678,1.36801693,2097.0,2096.3,1.45586009]
[1770587113876,1.37215445,2097.0,2096.3,1.45586009]
[1770587114578,0.00413752,2097.0,2096.3,1.45586009]
[1770587114979,1.37215445,2097.0,2096.3,1.45586009]
[1770587118788,0.00413752,2097.0,2096.3,1.45586009]
[1770587119389,1.24517156,2097.6,2096.3,1.69453009]
[1770587119591,1.24517156,2097.6,2096.5,1.29153776]
[1770587120487,1.25022446,2097.6,2096.5,1.29153776]
[1770587123488,1.24517156,2097.4,2095.9,1.29153776]
[1770587123797,1.24517156,2097.4,2095.9,1.53025776]
[1770587124092,1.24517156,2097.4,2096.0,0.2387]
[1770587124288,1.24517156,2097.4,2096.1,1.29153776]
[1770587125592,1.24517156,2097.4,2096.1,1.53022776]
[1770587126182,1.24517156,2097.2,2096.1,1.53022776]
[1770587133300,1.24517156,2097.0,2096.1,1.53022776]
[1770587133501,1.24517156,2097.0,2096.1,1.29153776]
[1770587133796,1.24517156,2097.0,2095.8,1.29153776]
[1770587133998,1.24517156,2097.0,2095.8,1.53025776]
[1770587134198,1.24517156,2097.0,2095.9,1.29153776]
[1770587136199,1.24517156,2096.8,2095.9,1.29153776]
[1770587136399,1.24517156,2097.1,2095.9,1.29153776]
[1770587136699,1.24517156,2097.1,2096.3,1.29153776]
[1770587137602,1.24517156,2097.1,2096.3,1.53020776]
[1770587141503,1.24517156,2097.3,2096.5,1.29153776]
[1770587141804,1.24517156,2097.1,2096.5,1.29153776]
[1770587143502,1.24517156,2097.1,2096.3,1.53020776]
[1770587143708,1.24517156,2096.9,2096.3,1.53020776]
[1770587143999,1.24517156,2096.9,2096.3,1.29153776]
[1770587144193,1.24517156,2096.9,2096.0,1.29153776]
[1770587144392,42.27590463,2097.9,2097.1,0.23858]
[1770587144597,0.00505876,2097.8,2097.2,1.29153776]
[1770587144797,42.27590463,2098.5,2096.8,1.29153776]
[1770587144798,0.95372364,2097.9,2096.8,1.29153776]
[1770587145001,5.17531818,2097.8,2096.8,1.29153776]
[1770587145199,1.05644448,2097.8,2097.0,1.15273333]
[1770587145403,1.06059159,2097.8,2097.0,1.15716187]
[1770587146198,0.00505876,2097.7,2097.1,1.15273333]
[1770587147809,1.06879209,2097.7,2097.0,0.00442854]
[1770587148010,1.06373333,2097.5,2096.4,0.23866]
[1770587148202,1.1358268,2097.3,2096.5,1.15273333]
[1770587148604,1.1358268,2097.1,2096.5,1.15273333]
[1770587149209,1.1358268,2096.9,2096.1,1.15273333]
[1770587149611,1.1358268,2096.7,2096.1,1.15273333]
[1770587150001,1.1358268,2096.5,2096.1,1.15273333]
[1770587150307,1.1358268,2096.5,2096.1,1.15760273]
[1770587150507,1.14088556,2096.5,2096.1,1.15760273]
[1770587154114,1.1358268,2097.2,2096.1,1.15760273]
[1770587154315,42.27590463,2097.3,2096.1,1.15760273]
[1770587154316,1.1358268,2097.0,2096.1,1.15760273]
[1770587154813,5.6391345,2097.4,2096.3,1.15273333]
[1770587154814,1.1358268,2097.2,2096.3,1.15273333]
[1770587155115,5.20716181,2097.1,2096.3,1.15273333]
[1770587155317,1.1358268,2097.1,2096.3,1.15273333]
[1770587156013,1.1358268,2097.4,2096.3,1.15273333]
[1770587156203,1.1358268,2097.2,2096.3,1.15273333]
[1770587156710,1.1358268,2097.2,2096.5,1.15273333]
[1770587157209,5.9128268,2097.4,2096.2,6.12050369]
[1770587157414,1.1358268,2097.0,2096.1,1.15760273]
[1770587157616,1.1358268,2096.8,2096.1,1.15760273]
[1770587160114,1.1358268,2097.0,2096.1,1.15760273]
[1770587160613,1.1358268,2096.9,2096.1,1.15760273]
[1770587161918,1.1358268,2097.0,2096.1,1.15760273]
[1770587162118,1.1358268,2097.0,2096.1,1.39629273]
[1770587162810,1.1358268,2097.2,2096.1,1.39629273]
[1770587163007,5.2050544,2097.1,2096.1,1.39629273]
[1770587163211,1.1358268,2097.1,2096.1,1.39629273]
[1770587171620,1.1358268,2097.1,2096.3,1.15273333]
[1770587173019,1.1358268,2097.3,2096.5,1.15273333]
[1770587174522,1.1358268,2097.5,2096.7,1.15273333]
[1770587175524,1.1358268,2097.5,2096.7,1.39135333]
[1770587177029,1.25118834,2097.7,2096.9,1.14053642]
[1770587179124,1.25118834,2097.7,2096.7,1.14053642]
[1770587179428,0.00414711,2097.8,2096.7,1.14053642]
[1770587179429,1.25118834,2097.5,2096.7,1.14053642]
[1770587185132,4.06787869,2097.4,2096.5,1.14053642]